bitfinex-derivatives/quotes_SOLF0:USTF0_20240910
["timestamp","ask_amount","ask_price","bid_price","bid_amount"]
[1725996868463,11.26,136.54,136.48,11.26]
[1725996868661,3.59928168,136.53,136.48,11.26]
[1725996869262,11.26,136.54,136.48,11.26]
[1725996869765,11.26,136.56,136.49,11.26]
[1725996871169,1.3216,136.59,136.51,11.26]
[1725996871373,11.26,136.58,136.51,11.26]
[1725996871667,12.5816,136.59,136.52,11.26]
[1725996872173,1.3216,136.59,136.52,11.26]
[1725996872769,1.3216,136.59,136.54,11.26]
[1725996873274,11.26,136.6,136.54,11.26]
[1725996874072,11.26,136.6,136.55,11.26]
[1725996874372,1.2984,136.62,136.55,11.26]
[1725996874373,12.5584,136.62,136.55,11.26]
[1725996874561,1.2984,136.62,136.56,11.26]
[1725996874767,12.5584,136.62,136.56,11.26]
[1725996875165,11.26,136.61,136.55,11.26]
[1725996875675,3.6603,136.6,136.55,11.26]
[1725996876086,11.26,136.61,136.55,11.26]
[1725996876381,14.9199,136.61,136.55,11.26]
[1725996876983,3.6601,136.6,136.55,11.26]
[1725996877780,14.9199,136.61,136.56,11.26]
[1725996878273,3.6599,136.61,136.56,11.26]
[1725996878475,1.3093,136.65,136.59,11.26]
[1725996878688,12.5693,136.65,136.59,11.26]
[1725996879071,7.36474626,136.64,136.59,11.26]
[1725996879383,14.96554626,136.64,136.59,11.26]
[1725996879776,11.26,136.65,136.59,11.26]
[1725996880175,3.69864518,136.64,136.57,4.1232]
[1725996880374,17.57,136.66,136.57,4.1232]
[1725996880579,1.4066,136.67,136.57,4.1232]
[1725996880780,3.6589,136.65,136.58,17.57]
[1725996881182,3.61186378,136.66,136.58,17.57]
[1725996881380,5.0649,136.67,136.58,17.57]
[1725996881885,8.77379783,136.67,136.58,17.57]
[1725996882084,3.6585,136.66,136.58,17.57]
[1725996883286,3.6589,136.65,136.58,17.57]
[1725996885684,5.11549783,136.67,136.58,17.57]
[1725996885877,22.68549783,136.67,136.57,4.1232]
[1725996886079,3.6594,136.63,136.57,4.1232]
[1725996886278,21.27889783,136.67,136.58,17.57]
[1725996887087,3.6591,136.64,136.58,17.57]
[1725996888485,3.70889783,136.67,136.58,17.57]
[1725996888687,17.57,136.69,136.58,17.57]
[1725996889089,3.6587,136.66,136.58,17.57]
[1725996890583,3.6584,136.67,136.6,17.57]
[1725996891389,3.658,136.68,136.62,17.57]
[1725996891578,3.658,136.68,136.63,1.268]
[1725996891779,3.72373141,136.7,136.63,3.9438]
[1725996891982,3.6578,136.69,136.63,3.9438]
[1725996892183,17.57,136.73,136.63,3.9438]
[1725996892390,21.27981914,136.73,136.63,3.9438]
[1725996892589,3.6578,136.69,136.63,3.9438]
[1725996892789,17.57,136.71,136.63,3.9438]
[1725996893194,3.6581,136.68,136.63,3.9438]
[1725996893392,3.70981914,136.73,136.63,3.9438]
[1725996893592,17.57,136.72,136.63,3.9438]
[1725996893794,3.6578,136.69,136.63,3.9438]
[1725996894495,17.57,136.72,136.64,17.57]
[1725996894690,3.67798843,136.72,136.64,17.57]
[1725996894891,3.657,136.72,136.64,17.57]
[1725996895097,7.2789896,136.72,136.64,17.57]
[1725996895289,3.6219896,136.72,136.66,17.57]
[1725996895485,3.657,136.72,136.66,17.57]
[1725996895689,3.62951035,136.72,136.66,17.57]
[1725996895892,1.4049,136.74,136.66,17.57]
[1725996896303,22.58794252,136.74,136.64,17.57]
[1725996896687,3.6573,136.71,136.64,17.57]
[1725996896892,22.58794252,136.74,136.64,17.57]
[1725996897496,3.6571,136.71,136.64,17.57]
[1725996899002,22.66589026,136.74,136.64,17.57]
[1725996899596,3.6574,136.71,136.64,17.57]
[1725996900799,17.57,136.72,136.63,3.9438]
[1725996901304,3.6578,136.69,136.63,3.9438]
[1725996901800,3.6582,136.68,136.63,3.9438]
[1725996902104,5.09589026,136.74,136.64,11.24]
[1725996902105,11.24,136.69,136.64,11.24]
[1725996902292,3.6583,136.67,136.63,3.9438]
[1725996902495,11.24,136.68,136.63,13.8538]
[1725996902902,11.24,136.66,136.61,11.24]
[1725996903402,3.659,136.64,136.61,11.24]
[1725996903700,11.24,136.62,136.51,2.6215]
[1725996903999,11.24,136.62,136.57,11.24]
[1725996904204,14.82476064,136.62,136.57,11.24]
[1725996904411,3.6608,136.58,136.51,2.6215]
[1725996904593,3.6608,136.58,136.53,11.24]
[1725996905003,11.24,136.59,136.51,2.6215]
[1725996905304,11.24,136.6,136.54,11.24]
[1725996905511,3.6605,136.59,136.54,11.24]
[1725996906204,3.6605,136.59,136.51,2.6215]
[1725996906205,3.6601,136.6,136.52,17.59]
[1725996906604,3.6601,136.6,136.51,2.6215]
[1725996906605,17.59,136.65,136.56,17.59]
[1725996907000,3.6598,136.62,136.56,17.59]
[1725996907906,17.59,136.65,136.56,17.59]
[1725996908414,17.59,136.65,136.54,17.59]
[1725996908415,3.6599,136.61,136.54,17.59]
[1725996909307,3.6601,136.6,136.54,17.59]
[1725996910109,3.6604,136.59,136.54,17.59]
[1725996910310,17.59,136.64,136.52,18.9584]
[1725996910709,17.59,136.62,136.52,18.9584]
[1725996910906,17.59,136.6,136.52,1.3684]
[1725996911111,3.74423203,136.59,136.52,1.3684]
[1725996911412,17.59,136.58,136.51,1.2818]
[1725996911607,21.19873068,136.58,136.51,1.2818]
[1725996912005,21.19873068,136.58,136.48,17.59]
[1725996912216,3.6622,136.52,136.46,17.59]
[1725996912713,3.6624,136.52,136.46,17.59]
[1725996913013,17.59,136.54,136.45,2.7288]
[1725996913311,17.59,136.52,136.45,1.3237]
[1725996913816,21.25300366,136.52,136.4,17.59]
[1725996914009,21.25300366,136.52,136.4,21.33652014]
[1725996915312,21.25300366,136.52,136.42,17.59]
[1725996915609,18.9899,136.54,136.4,3.74652014]
[1725996915610,18.9899,136.54,136.44,17.59]
[1725996915817,3.57442258,136.53,136.47,3.6635]
[1725996916015,3.57442258,136.53,136.44,17.59]
[1725996916315,17.59,136.5,136.4,17.59]
[1725996916503,17.59,136.5,136.4,21.31799959]
[1725996916707,17.59,136.52,136.42,17.59]
[1725996917202,1.3494,136.51,136.42,17.59]
[1725996919213,17.59,136.5,136.4,17.59]
[1725996919411,17.59,136.5,136.4,21.2817129]
[1725996920217,1.3494,136.51,136.43,17.59]
[1725996920412,22.66511895,136.54,136.44,1.3411]
[1725996920621,22.66511895,136.54,136.44,3.9706]
[1725996923720,5.07511895,136.54,136.44,3.9706]
[1725996924121,5.07511895,136.54,136.48,3.6632]
[1725996924318,5.07511895,136.54,136.44,3.9706]
[1725996926121,5.07511895,136.54,136.47,3.6636]
[1725996926322,5.07511895,136.54,136.44,3.9706]
[1725996926626,17.59,136.53,136.44,3.9706]
[1725996927325,17.59,136.53,136.46,3.6637]
[1725996929219,17.59,136.53,136.44,1.3411]
[1725996930626,17.59,136.53,136.47,3.6634]
[1725996931025,17.59,136.53,136.44,1.3411]
[1725996931227,17.59,136.53,136.47,3.6634]
[1725996932024,17.59,136.53,136.44,1.3411]
[1725996932224,17.59,136.51,136.44,1.3411]
[1725996932418,17.59,136.51,136.44,5.0053]
[1725996932624,17.59,136.51,136.44,1.3411]
[1725996933128,2.7612,136.5,136.45,3.664]
[1725996933322,2.7612,136.5,136.44,1.3411]
[1725996933523,2.7612,136.5,136.46,3.6637]
[1725996934635,2.7612,136.5,136.47,3.6636]
[1725996935119,2.7612,136.5,136.46,3.6637]
[1725996936325,2.7612,136.5,136.47,3.6635]
[1725996936922,2.7612,136.5,136.44,1.3411]
[1725996937324,17.59,136.53,136.44,1.3411]
[1725996937721,22.66511895,136.54,136.44,1.3411]
[1725996938623,22.66511895,136.54,136.49,3.663]
[1725996938830,22.66511895,136.54,136.44,1.3411]
[1725996939828,22.66511895,136.54,136.48,3.6631]
[1725996940531,22.66511895,136.54,136.44,1.3411]
[1725996940725,2.6941,136.53,136.44,1.3411]
[1725996941033,17.59,136.52,136.46,3.6636]
[1725996941528,17.59,136.52,136.45,3.6639]
[1725996942421,17.59,136.52,136.46,3.6638]
[1725996942818,17.59,136.52,136.44,1.3411]
[1725996943323,2.6941,136.53,136.45,17.59]
[1725996943728,2.6941,136.53,136.49,3.6629]
[1725996944933,2.6941,136.53,136.45,17.59]
[1725996945234,1.3624,136.53,136.45,17.59]
[1725996945422,1.3624,136.53,136.5,3.6626]
[1725996947127,2.6514,136.59,136.49,17.59]
[1725996947328,2.6514,136.59,136.5,1.3367]
[1725996947530,2.6514,136.59,136.54,3.6615]
[1725996948036,1.2861,136.59,136.55,3.6614]
[1725996948637,4.93801699,136.59,136.51,17.59]
[1725996948837,1.2861,136.59,136.5,1.3367]
[1725996949038,17.59,136.58,136.5,1.3367]
[1725996949332,17.59,136.58,136.51,3.6624]
[1725996949729,21.28697073,136.58,136.5,1.3367]
[1725996949929,1.351,136.6,136.57,3.6609]
[1725996950129,1.351,136.6,136.53,17.59]
[1725996950733,20.2225,136.65,136.53,17.59]
[1725996950927,17.59,136.63,136.55,3.6614]
[1725996951129,17.59,136.63,136.53,17.59]
[1725996951539,17.59,136.63,136.56,3.6612]
[1725996952636,17.59,136.63,136.53,17.59]
[1725996954034,17.59,136.61,136.5,18.9267]
[1725996954230,17.59,136.61,136.54,3.6617]
[1725996954425,17.59,136.61,136.5,18.9267]
[1725996955429,17.59,136.61,136.53,3.6618]
[1725996956425,1.3681,136.64,136.52,3.6621]
[1725996956426,17.59,136.59,136.52,3.6621]
[1725996956743,2.7839,136.58,136.52,3.6621]
[1725996957037,2.7839,136.58,136.51,3.6625]
[1725996957435,17.59,136.57,136.51,3.6625]
[1725996959131,17.59,136.57,136.47,1.3049]
[1725996959336,17.59,136.54,136.47,1.3049]
[1725996960339,3.67553187,136.55,136.51,3.6624]
[1725996960527,17.59,136.57,136.51,3.6624]
[1725996960731,21.2017828,136.57,136.51,3.6624]
[1725996960936,3.6117828,136.57,136.48,17.59]
[1725996961132,3.6117828,136.57,136.48,20.3657]
[1725996961533,3.6117828,136.57,136.53,3.662]
[1725996962333,18.9666,136.58,136.53,3.662]
[1725996962535,17.59,136.61,136.5,17.59]
[1725996962939,17.59,136.61,136.56,3.661]
[1725996963137,3.67296841,136.6,136.56,3.661]
[1725996963631,3.67296841,136.6,136.5,17.59]
[1725996963843,17.59,136.59,136.48,20.3657]
[1725996964246,17.59,136.59,136.53,3.6619]
[1725996965049,17.59,136.59,136.52,3.6622]
[1725996965246,2.631,136.58,136.48,20.3657]
[1725996965540,3.71940824,136.57,136.51,3.6623]
[1725996965734,21.30940824,136.57,136.51,3.6623]
[1725996966136,21.30940824,136.57,136.5,3.6627]
[1725996966549,21.30940824,136.57,136.48,2.7757]
[1725996966737,21.30940824,136.57,136.5,3.6627]
[1725996967242,21.30940824,136.57,136.51,3.6625]
[1725996967439,3.71940824,136.57,136.48,2.7757]
[1725996967742,3.9998,136.58,136.48,2.7757]
[1725996967936,17.59,136.57,136.51,3.6625]
[1725996968143,3.6278066,136.56,136.48,2.7757]
[1725996968543,17.59,136.57,136.48,20.3657]
[1725996968741,3.9998,136.58,136.48,20.3657]
[1725996969339,3.9998,136.58,136.54,3.6616]
[1725996969741,3.9998,136.58,136.48,20.3657]
[1725996969941,3.7406489,136.57,136.48,20.3657]
[1725996970643,3.9998,136.58,136.48,20.3657]
[1725996971042,2.631,136.58,136.48,20.3657]
[1725996972050,2.631,136.58,136.53,3.6618]
[1725996973240,2.631,136.58,136.54,3.6617]
[1725996973841,2.631,136.58,136.53,3.6618]
[1725996974245,2.631,136.58,136.48,20.3657]
[1725996974445,2.631,136.58,136.54,3.6615]
[1725996979047,2.631,136.58,136.48,20.3657]
[1725996979048,2.631,136.58,136.55,3.6614]
[1725996980060,2.631,136.58,136.54,3.6616]
[1725996981450,2.631,136.58,136.55,3.6614]
[1725996985356,2.631,136.58,136.48,20.3657]
[1725996986953,2.631,136.58,136.53,3.6618]
[1725996987353,17.59,136.57,136.48,20.3657]
[1725996987551,3.63250359,136.56,136.52,3.6621]
[1725996987962,17.59,136.57,136.53,3.6618]
[1725996988157,17.59,136.57,136.48,20.3657]
[1725996988766,2.631,136.58,136.48,20.3657]
[1725996989059,20.3554,136.62,136.52,17.59]
[1725996989265,20.3554,136.62,136.53,6.32447736]
[1725996990367,20.3554,136.62,136.53,2.6015]
[1725996990669,17.59,136.6,136.53,2.6015]
[1725996990864,17.59,136.6,136.54,3.6615]
[1725996991269,17.59,136.6,136.53,2.6015]
[1725996992267,17.59,136.6,136.54,3.6616]
[1725996992860,17.59,136.6,136.53,4.9782]
[1725996993363,17.59,136.6,136.53,1.3164]
[1725996993961,17.59,136.6,136.54,3.6616]
[1725996994565,2.7654,136.62,136.53,1.3164]
[1725996994761,20.3554,136.62,136.53,1.3164]
[1725996994965,20.3554,136.62,136.53,4.97437377]
[1725996995663,20.3554,136.62,136.57,3.6608]
[1725996996165,20.3554,136.62,136.56,3.661]
[1725996997671,20.3554,136.62,136.53,4.97437377]
[1725996998261,2.7654,136.62,136.53,6.31097377]
[1725996998568,2.7654,136.62,136.54,1.3763]
[1725996998569,20.3554,136.62,136.54,1.3763]
[1725996999564,2.7654,136.62,136.57,3.6609]
[1725996999763,2.7654,136.62,136.54,1.3763]
[1725997000058,3.64212659,136.64,136.59,3.6602]
[1725997000368,17.59,136.65,136.59,3.6602]
[1725997000665,21.29705442,136.65,136.6,3.66]
[1725997000869,3.70705442,136.65,136.56,17.59]
[1725997001061,17.59,136.67,136.54,18.9663]
[1725997001559,17.59,136.64,136.54,18.9663]
[1725997002166,17.59,136.61,136.54,1.3763]
[1725997002372,17.59,136.61,136.55,3.6613]
[1725997002762,17.59,136.61,136.53,2.653]
[1725997003265,17.59,136.61,136.56,3.6612]
[1725997005276,17.59,136.61,136.55,3.6614]
[1725997006475,17.59,136.61,136.54,3.6616]
[1725997008177,17.59,136.61,136.55,3.6614]
[1725997008377,17.59,136.61,136.53,1.3164]
[1725997008679,2.636,136.63,136.54,17.59]
[1725997008882,2.636,136.63,136.59,3.6602]
[1725997010976,17.59,136.67,136.56,17.59]
[1725997011279,21.20615643,136.67,136.56,17.59]
[1725997011469,21.20615643,136.67,136.6,3.6599]
[1725997011882,21.20615643,136.67,136.56,17.59]
[1725997012081,21.20615643,136.67,136.61,3.6597]
[1725997014274,17.59,136.65,136.57,2.6555]
[1725997014679,17.59,136.65,136.6,3.6599]
[1725997014875,21.20615643,136.67,136.57,2.6555]
[1725997015178,21.20615643,136.67,136.62,3.6594]
[1725997015881,21.20615643,136.67,136.61,3.6597]
[1725997017674,17.59,136.65,136.6,3.6601]
[1725997017875,2.5832,136.64,136.56,17.59]
[1725997018187,2.5832,136.64,136.58,3.6604]
[1725997018377,17.59,136.63,136.54,17.59]
[1725997018679,17.59,136.63,136.57,3.6607]
[1725997020075,17.59,136.63,136.54,17.59]
[1725997020785,17.59,136.63,136.57,3.6607]
[1725997021181,17.59,136.63,136.55,3.6613]
[1725997021376,17.59,136.61,136.53,1.3164]
[1725997021585,17.59,136.61,136.52,1.2863]
[1725997021799,17.59,136.61,136.54,3.6615]
[1725997023684,3.66520146,136.6,136.52,18.8763]
[1725997023886,3.66520146,136.6,136.53,1.3894]
[1725997024079,1.3912,136.63,136.59,3.6602]
[1725997024282,1.3912,136.63,136.54,18.9034]
[1725997024681,1.3912,136.63,136.58,3.6606]
[1725997025194,1.3912,136.63,136.54,18.9034]
[1725997025783,1.3912,136.63,136.58,3.6604]
[1725997026383,1.3912,136.63,136.54,18.9034]
[1725997026592,1.3912,136.63,136.58,3.6605]
[1725997029091,1.3912,136.63,136.54,18.9034]
[1725997029688,1.3912,136.63,136.59,3.6602]
[1725997032098,18.9812,136.63,136.54,18.9034]
[1725997032692,18.9812,136.63,136.58,3.6604]
[1725997037090,18.9812,136.63,136.54,1.3134]
[1725997037297,18.9812,136.63,136.53,1.3894]
[1725997037898,18.9812,136.63,136.57,3.6608]
[1725997038092,11.25,136.61,136.57,3.6608]
[1725997038289,3.73909723,136.6,136.57,3.6608]
[1725997039098,3.73909723,136.6,136.58,3.6605]
[1725997040102,3.73909723,136.6,136.57,3.6608]
[1725997040802,3.73909723,136.6,136.56,3.6611]
[1725997041802,14.98909723,136.6,136.56,3.6611]
[1725997043395,14.98909723,136.6,136.57,3.6609]
[1725997044304,3.73909723,136.6,136.55,11.25]
[1725997044499,11.25,136.62,136.55,11.25]
[1725997044800,11.25,136.62,136.57,3.6609]
[1725997046102,11.25,136.62,136.58,3.6606]
[1725997048498,11.25,136.61,136.57,3.6608]
[1725997048999,11.25,136.61,136.53,1.3894]
[1725997049000,11.25,136.58,136.53,1.3894]
[1725997049208,14.83775271,136.58,136.53,1.3894]
[1725997049393,11.25,136.57,136.53,1.3894]
[1725997049592,3.58775271,136.58,136.46,3.69641349]
[1725997049593,11.25,136.55,136.46,3.69641349]
[1725997049898,11.25,136.55,136.36,10.9996]
[1725997049899,11.25,136.55,136.5,11.25]
[1725997050103,14.94799296,136.55,136.5,11.25]
[1725997050303,14.94799296,136.55,136.52,3.6621]
[1725997051098,9.0418076,136.63,136.51,11.25]
[1725997051312,11.25,136.58,136.51,11.25]
[1725997051503,3.67526256,136.57,136.51,11.25]
[1725997051707,3.67526256,136.57,136.54,3.6615]
[1725997052004,3.67526256,136.57,136.51,11.25]
[1725997052695,11.25,136.58,136.54,3.6615]
[1725997053103,11.25,136.58,136.51,11.25]
[1725997053406,14.85309803,136.57,136.51,11.25]
[1725997053704,11.25,136.57,136.52,3.6621]
[1725997053898,11.25,136.55,136.52,3.6621]
[1725997054294,11.25,136.55,136.5,11.25]
[1725997054495,11.25,136.55,136.51,3.6624]
[1725997054701,3.61445387,136.54,136.51,3.6624]
[1725997055002,11.25,136.54,136.5,3.6626]
[1725997055206,1.3912,136.63,136.47,3.992]
[1725997055207,11.25,136.53,136.47,1.3441]
[1725997055506,3.61115701,136.55,136.47,1.3441]
[1725997055507,11.25,136.51,136.47,1.3441]
[1725997055903,14.88570028,136.51,136.46,11.25]
[1725997056107,3.63570028,136.51,136.43,23.83645627]
[1725997056303,18.9427,136.53,136.43,23.83645627]
[1725997056903,22.68976077,136.53,136.47,3.6634]
[1725997057103,22.68976077,136.53,136.43,23.83645627]
[1725997057509,22.68976077,136.53,136.48,3.6631]
[1725997057909,22.68976077,136.53,136.44,1.3043]
[1725997058413,22.68976077,136.53,136.49,3.6628]
[1725997058914,5.10976077,136.53,136.5,3.6627]
[1725997059111,1.3287,136.54,136.45,17.58]
[1725997059322,1.3287,136.54,136.51,3.6623]
[1725997059614,4.95850064,136.54,136.51,3.6623]
[1725997060710,17.58,136.57,136.52,3.662]
[1725997061108,17.58,136.57,136.51,3.6623]
[1725997061514,21.24288028,136.57,136.51,3.6623]
[1725997061918,21.24288028,136.57,136.47,17.58]
[1725997062116,3.66288028,136.57,136.49,17.58]
[1725997062311,18.872,136.59,136.49,17.58]
[1725997062513,18.872,136.59,136.5,4.93679102]
[1725997062907,18.872,136.59,136.5,1.334]
[1725997063319,3.59619585,136.58,136.5,1.334]
[1725997063514,18.872,136.59,136.55,3.6613]
[1725997065114,3.69184266,136.58,136.56,3.661]
[1725997065916,3.69184266,136.58,136.5,4.93683405]
[1725997066521,3.69184266,136.58,136.55,3.6613]
[1725997066721,18.872,136.59,136.55,3.6613]
[1725997067513,18.872,136.59,136.56,3.6612]
[1725997067913,17.58,136.61,136.56,3.6612]
[1725997071526,17.58,136.61,136.57,3.6608]
[1725997072124,17.58,136.61,136.56,3.661]
[1725997073417,17.58,136.59,136.55,3.6613]
[1725997073725,17.58,136.59,136.49,18.937]
[1725997073726,17.58,136.57,136.49,1.357]
[1725997073927,21.283663,136.57,136.49,1.357]
[1725997075028,3.703663,136.57,136.49,1.357]
[1725997075930,1.3217,136.58,136.49,1.357]
[1725997076431,4.93305531,136.58,136.49,1.357]
[1725997076626,17.58,136.57,136.49,1.357]
[1725997077426,17.58,136.55,136.48,1.3267]
[1725997077628,17.58,136.53,136.46,1.4089]
[1725997078534,1.2938,136.57,136.46,1.4089]
[1725997078535,17.58,136.55,136.46,1.4089]
[1725997078837,17.58,136.55,136.46,18.9889]
[1725997079034,17.58,136.55,136.47,1.4091]
[1725997079241,18.8738,136.57,136.47,1.4091]
[1725997080329,18.8738,136.57,136.48,17.58]
[1725997080735,18.8738,136.57,136.49,1.3568]
[1725997081847,18.8738,136.57,136.52,3.6621]
[1725997082249,11.26,136.56,136.52,3.6621]
[1725997083351,11.26,136.55,136.51,3.6624]
[1725997084045,11.26,136.56,136.52,3.6622]
[1725997085346,11.26,136.55,136.51,3.6625]
[1725997085649,11.26,136.55,136.49,12.6168]
[1725997085845,11.26,136.55,136.5,3.6626]
[1725997086948,11.26,136.55,136.51,3.6625]
[1725997089641,11.26,136.53,136.5,3.6626]
[1725997090247,11.26,136.53,136.49,3.6629]
[1725997090647,11.26,136.53,136.47,12.6691]
[1725997090850,11.26,136.53,136.5,3.6628]
[1725997091558,11.26,136.53,136.49,3.6629]
[1725997092952,11.26,136.53,136.48,3.6631]
[1725997093149,11.26,136.53,136.47,11.26]
[1725997094046,11.26,136.53,136.49,3.663]
[1725997094554,11.26,136.5,136.41,11.26]
[1725997094755,11.26,136.46,136.41,11.26]
[1725997094954,14.9238,136.46,136.41,11.26]
[1725997095954,11.26,136.46,136.36,3.9815]
[1725997096155,11.26,136.45,136.37,3.5849483]
[1725997096357,11.26,136.45,136.38,11.26]
[1725997096655,14.9242,136.45,136.38,11.26]
[1725997098156,1.3513,136.51,136.42,11.26]
[1725997098456,11.26,136.5,136.43,11.26]
[1725997098662,5.02495561,136.51,136.45,3.6639]
[1725997098862,11.26,136.49,136.45,3.6639]
[1725997099162,14.88307045,136.49,136.45,3.6639]
[1725997099961,14.88307045,136.49,136.44,3.6642]
[1725997100157,14.88307045,136.49,136.43,11.26]
[1725997100158,3.62307045,136.49,136.41,21.18264605]
[1725997100359,18.9413,136.51,136.41,21.18264605]
[1725997101059,22.6194512,136.51,136.41,21.18264605]
[1725997101653,22.6194512,136.51,136.44,3.6644]
[1725997102854,22.6194512,136.51,136.43,3.6645]
[1725997102855,17.59,136.49,136.43,3.6645]
[1725997105652,17.59,136.49,136.42,3.6648]
[1725997106058,17.59,136.47,136.42,3.6648]
[1725997109264,17.59,136.47,136.43,3.6646]
[1725997110560,17.59,136.47,136.42,3.6648]
[1725997111170,2.7446,136.52,136.41,17.59]
[1725997111363,2.7446,136.52,136.38,7.3319]
[1725997111364,1.4076,136.52,136.43,17.59]
[1725997111565,3.59144313,136.53,136.44,17.59]
[1725997111871,3.59144313,136.53,136.5,3.6626]
[1725997113059,17.59,136.54,136.5,3.6626]
[1725997113268,17.59,136.56,136.51,3.6623]
[1725997115965,17.59,136.56,136.5,3.6627]
[1725997117665,17.59,136.51,136.42,4.0946]
[1725997117863,21.32406126,136.51,136.42,4.0946]
[1725997118063,17.59,136.51,136.42,4.0946]
[1725997118269,17.59,136.51,136.47,3.6634]
[1725997118658,3.62200395,136.5,136.47,3.6634]
[1725997119171,3.62200395,136.5,136.42,4.0946]
[1725997119370,17.59,136.51,136.42,4.0946]
[1725997119566,18.9394,136.5,136.42,4.0946]
[1725997119759,18.9394,136.5,136.44,3.6642]
[1725997120165,18.9394,136.5,136.43,3.6645]
[1725997120764,17.59,136.47,136.43,3.6645]
[1725997121167,17.59,136.47,136.42,3.6648]
[1725997121367,17.59,136.47,136.37,17.59]
[1725997121574,17.59,136.47,136.37,21.21750128]
[1725997121774,17.59,136.45,136.37,17.59]
[1725997123170,17.59,136.45,136.39,3.6656]
[1725997123474,3.65999413,136.44,136.39,3.6656]
[1725997123879,3.65999413,136.44,136.37,17.59]
[1725997124072,17.59,136.45,136.37,17.59]
[1725997124469,17.59,136.45,136.41,3.665]
[1725997127183,3.66246278,136.44,136.4,3.6653]
[1725997129380,3.66246278,136.44,136.41,3.6652]
[1725997129975,17.59,136.45,136.41,3.6652]
[1725997130176,17.59,136.45,136.42,3.6648]
[1725997132484,17.59,136.45,136.41,3.6651]
[1725997133582,3.57483317,136.44,136.41,3.6651]
[1725997134776,3.57483317,136.44,136.4,3.6653]
[1725997136482,3.57483317,136.44,136.41,3.6651]
[1725997136679,17.59,136.46,136.41,3.6651]
[1725997137279,17.59,136.46,136.37,17.59]
[1725997137479,18.9155,136.48,136.37,17.59]
[1725997137783,18.9155,136.48,136.45,3.664]
[1725997137980,18.9155,136.48,136.39,17.59]
[1725997138182,1.3255,136.48,136.39,17.59]
[1725997138487,1.3255,136.48,136.44,3.6642]
[1725997138685,1.3255,136.48,136.39,17.59]
[1725997139280,1.3255,136.48,136.44,3.6642]
[1725997139786,1.3255,136.48,136.43,3.6645]
[1725997140290,1.3255,136.48,136.39,17.59]
[1725997140779,18.9155,136.48,136.39,17.59]
[1725997141784,18.9155,136.48,136.43,3.6645]
[1725997142393,18.9155,136.48,136.43,3.6646]
[1725997146190,18.9155,136.48,136.44,3.6644]
[1725997146387,11.26,136.46,136.44,3.6644]
[1725997146995,11.26,136.46,136.36,7.79028245]
[1725997147198,11.26,136.42,136.36,19.05028245]
[1725997151693,3.6368969,136.44,136.36,7.79028245]
[1725997151694,11.26,136.41,136.36,7.79028245]
[1725997154295,11.26,136.41,136.36,6.43728245]
[1725997155295,11.26,136.41,136.36,2.6817]
[1725997155892,3.6368969,136.44,136.36,2.6817]
[1725997155893,11.26,136.39,136.37,3.6661]
[1725997156392,11.26,136.39,136.36,2.6817]